fUST/lending_fUST_20250804
["ID","MTS","AMOUNT","RATE_DAILY","PERIOD"]
[377280594,1754316918982,-392.48853557,0.00030983,2]
[377280595,1754316918993,-107.51146443,0.00030983,2]
[377280596,1754316919003,-392.48853557,0.00030983,2]
[377280597,1754316919020,-107.51146443,0.00030983,2]
[377280598,1754316919030,-392.48853557,0.00030983,2]
[377280599,1754316919042,-107.51146443,0.00030983,2]
[377280600,1754316919053,-392.48853557,0.00030983,2]
[377280601,1754316919066,-107.51146443,0.00030983,2]
[377280602,1754316919081,-392.48853557,0.00030983,2]
[377280603,1754316919098,-107.51146443,0.00030983,2]
[377280604,1754316919108,-392.48853557,0.00030983,2]
[377280605,1754316919124,-107.51146443,0.00030983,2]
[377280606,1754316919133,-392.48853557,0.00030983,2]
[377280607,1754316919148,-107.51146443,0.00030983,2]
[377280608,1754316919157,-392.48853557,0.00030983,2]
[377280609,1754316919212,-107.51146443,0.00030983,2]
[377280610,1754316919223,-392.48853557,0.00030983,2]
[377280611,1754316919289,-107.51146443,0.00030983,2]
[377280612,1754316919299,-392.48853557,0.00030983,2]
[377280613,1754316919311,-107.51146443,0.00030983,2]
[377280614,1754316919321,-392.48853557,0.00030983,2]
[377280615,1754316919337,-107.51146443,0.00030983,2]
[377280616,1754316919346,-392.48853557,0.00030983,2]
[377280617,1754316919362,-107.51146443,0.00030983,2]
[377280618,1754316919371,-392.48853557,0.00030983,2]
[377280619,1754316920406,-107.51146443,0.00030983,2]
[377280620,1754316920442,-500.0,0.00030983,2]
[377280621,1754316920473,-500.0,0.00030983,2]
[377280622,1754316920507,-500.0,0.00030983,2]
[377280623,1754316920539,-500.0,0.00030983,2]
[377280624,1754316920575,-500.0,0.00030983,2]
[377280625,1754316920605,-500.0,0.00030983,2]
[377280626,1754316920637,-500.0,0.00030983,2]
[377280627,1754316920666,-500.0,0.00030983,2]
[377280628,1754316920699,-500.0,0.00030983,2]
[377280629,1754316920731,-500.0,0.00030983,2]
[377280630,1754316920766,-500.0,0.00030983,2]
[377280631,1754316920794,-500.0,0.00030983,2]
[377280632,1754316920827,-500.0,0.00030983,2]
[377280633,1754316920857,-500.0,0.00030983,2]
[377280634,1754316920890,-500.0,0.00030983,2]
[377280635,1754316920921,-500.0,0.00030983,2]
[377280636,1754316920953,-500.0,0.00030983,2]
[377280637,1754316920983,-500.0,0.00030983,2]
[377280638,1754316921014,-500.0,0.00030983,2]
[377280639,1754316921048,-284.97707114,0.00030983,2]
[377280640,1754316921061,-107.51146443,0.00030983,2]
[377280641,1754316921076,-107.51146443,0.00030983,2]
[377280642,1754316921085,-392.48853557,0.00030983,2]
[377280643,1754316921097,-107.51146443,0.00030983,2]
[377280644,1754316921106,-392.48853557,0.00030983,2]
[377280645,1754316921118,-107.51146443,0.00030983,2]
[377280646,1754316921127,-392.48853557,0.00030983,2]
[377280647,1754316921138,-107.51146443,0.00030983,2]
[377280648,1754316921147,-392.48853557,0.00030983,2]
[377280649,1754316921162,-107.51146443,0.00030983,2]
[377280650,1754316921171,-392.48853557,0.00030983,2]
[377280651,1754316921181,-107.51146443,0.00030983,2]
[377280652,1754316921191,-392.48853557,0.00030983,2]
[377280653,1754316921207,-107.51146443,0.00030983,2]
[377280654,1754316921217,-349.68455761,0.00030983,2]
[377280655,1754316921226,-42.80397796,0.00030983,2]
[377280656,1754316921237,-457.19602204,0.00030983,2]
[377280657,1754316921246,-42.80397796,0.00030983,2]
[377280658,1754316921262,-457.19602204,0.00030983,2]
[377280659,1754316921271,-42.80397796,0.00030983,2]
[377280660,1754316921283,-500.0,0.00030983,2]
[377280661,1754316921294,-54.84100724,0.00030983,2]
[377280662,1754316921303,-445.15899276,0.00030983,2]
[377280663,1754316921315,-54.84100724,0.00030983,2]
[377280664,1754316921324,-445.15899276,0.00030983,2]
[377280665,1754316921336,-54.84100724,0.00030983,2]
[377280666,1754316921346,-445.15899276,0.00030983,2]
[377280667,1754316921358,-54.84100724,0.00030983,2]
[377280668,1754316921367,-445.15899276,0.00030983,2]
[377280669,1754316921379,-54.84100724,0.00030983,2]
[377280670,1754316921389,-445.15899276,0.00030983,2]
[377280671,1754316921400,-54.84100724,0.00030983,2]
[377280672,1754316921410,-445.15899276,0.00030983,2]
[377280673,1754316921421,-54.84100724,0.00030983,2]
[377280674,1754316921431,-445.15899276,0.00030983,2]
[377280675,1754316921442,-54.84100724,0.00030983,2]
[377280676,1754316921451,-445.15899276,0.00030983,2]
[377280677,1754316921464,-54.84100724,0.00030983,2]
[377280678,1754316921473,-445.15899276,0.00030983,2]
[377280679,1754316921489,-177.72662216,0.00030983,2]
[377280680,1754316921498,-322.27337784,0.00030984,2]
[377280681,1754317079182,4996.06,0.00032876,120]
[377280682,1754317101022,-199.10075,0.00030028,2]
[377280684,1754317171418,164.010866,0.00025246,2]
[377280686,1754317259472,160.0,0.0003001,7]
[377280687,1754317341178,4787.89,0.00032876,120]
[377280688,1754317470097,151.0,0.00032656,120]
[377280689,1754317470571,151.0,0.00032646,120]
[377280690,1754317471028,151.0,0.00032636,120]
[377280699,1754317552793,164.983962,0.00013699,2]
[377280700,1754317582596,4588.4,0.00032876,120]
[377280703,1754317618354,24900.0,0.00029842,2]
[377280705,1754317672844,177.118633,0.00029473,2]
[377280708,1754317675587,-190.05,0.00030206,10]
[377280709,1754317675619,-158.37,0.00030206,10]
[377280713,1754317680739,791.88,0.00030206,10]
[377280714,1754317683766,400.0,0.00030215,2]
[377280715,1754317699418,18111.28,0.0002699,2]
[377280716,1754317699445,20000.0,0.0002699,2]
[377280717,1754317699469,20000.0,0.0002699,2]
[377280718,1754317699494,20000.0,0.0002699,2]
[377280719,1754317699520,20000.0,0.0002699,2]
[377280720,1754317699543,1888.72,0.0002699,2]
[377280726,1754317712266,436.01993045,0.00030215,2]
[377280727,1754317713419,500.0,0.00030215,2]
[377280728,1754317713456,301.35127062,0.00030215,2]
[377280729,1754317713490,187.69579333,0.00030215,2]
[377280730,1754317713522,500.0,0.00030215,2]
[377280731,1754317713558,500.0,0.00030215,2]
[377280732,1754317713591,236.93799744,0.00030215,2]
[377280733,1754317713625,500.0,0.00030215,2]
[377280734,1754317713658,348.3917191,0.00030215,2]
[377280735,1754317713689,500.0,0.00030215,2]
[377280736,1754317713723,500.0,0.00030215,2]
[377280737,1754317713753,500.0,0.00030215,2]
[377280738,1754317713787,500.0,0.00030215,2]
[377280739,1754317713818,500.0,0.00030215,2]
[377280740,1754317713850,500.0,0.00030215,2]
[377280741,1754317713881,500.0,0.00030215,2]
[377280742,1754317713914,495.52830042,0.00030215,2]
[377280743,1754317714014,500.0,0.00030215,2]
[377280744,1754317714055,500.0,0.00030215,2]
[377280745,1754317714181,500.0,0.00030215,2]
[377280746,1754317714241,500.0,0.00030215,2]
[377280747,1754317714281,500.0,0.00030215,2]
[377280748,1754317714314,500.0,0.00030215,2]
[377280749,1754317714347,500.0,0.00030215,2]
[377280750,1754317714376,500.0,0.00030215,2]
[377280751,1754317714409,500.0,0.00030215,2]
[377280752,1754317714443,500.0,0.00030215,2]
[377280753,1754317714474,500.0,0.00030215,2]
[377280754,1754317714514,500.0,0.00030215,2]
[377280755,1754317714549,500.0,0.00030215,2]
[377280756,1754317714591,500.0,0.00030215,2]
[377280757,1754317714624,500.0,0.00030215,2]
[377280758,1754317714662,500.0,0.00030215,2]
[377280759,1754317714707,500.0,0.00030215,2]
[377280760,1754317714739,500.0,0.00030215,2]
[377280761,1754317716579,404.19,0.00030206,10]
[377280765,1754317721054,221.13,0.00027577,15]
[377280766,1754317722410,221.12,0.00027477,15]
[377280767,1754317724791,758.91498864,0.0003031,2]
[377280768,1754317724816,4241.08501136,0.0003031,2]
[377280769,1754317727228,485.02,0.00030206,10]
[377280770,1754317727687,500.0,0.00030215,2]
[377280771,1754317727738,500.0,0.00030215,2]
[377280772,1754317727766,14273.89498864,0.0002465,2]
[377280773,1754317727790,18758.3114023,0.0002465,2]
[377280774,1754317727839,500.0,0.00030215,2]
[377280775,1754317727871,500.0,0.00030215,2]
[377280776,1754317727906,241.6885977,0.00030215,2]
[377280777,1754317727935,258.3114023,0.00030215,2]
[377280778,1754317727968,200.0,0.00030215,2]
[377280781,1754317737592,316.56129544,0.00030115,2]
[377280782,1754317739105,-11841.21954607,0.00030385,2]
[377280783,1754317740165,347.74440414,0.00028883,2]
[377280784,1754317743395,5000.0,0.00030385,2]
[377280785,1754317747665,500.0,0.00030215,2]
[377280786,1754317747708,500.0,0.00030215,2]
[377280787,1754317748142,500.0,0.00030215,2]
[377280788,1754317748180,500.0,0.00030215,2]
[377280791,1754317748220,500.0,0.00030215,2]
[377280793,1754317748248,399.0,0.00030215,2]
[377280795,1754317748276,500.0,0.00030215,2]
[377280796,1754317748303,168.85039496,0.00030215,2]
[377280797,1754317748337,500.0,0.00030215,2]
[377280798,1754317748397,500.0,0.00030215,2]
[377280799,1754317748440,500.0,0.00030215,2]
[377280800,1754317748509,500.0,0.00030215,2]
[377280801,1754317748557,500.0,0.00030215,2]
[377280802,1754317748677,500.0,0.00030215,2]
[377280803,1754317748726,500.0,0.00030215,2]
[377280805,1754317758065,500.0,0.00030215,2]
[377280806,1754317758757,500.0,0.00030215,2]
[377280807,1754317758810,500.0,0.00030215,2]
[377280808,1754317758867,500.0,0.00030215,2]
[377280809,1754317759487,500.0,0.00030215,2]
[377280810,1754317759545,375.30057698,0.00030215,2]
[377280811,1754317759808,5000.0,0.00030385,2]
[377280812,1754317760689,475.52053617,0.00030215,2]
[377280813,1754317761435,500.0,0.00030215,2]
[377280814,1754317761492,500.0,0.00030215,2]
[377280815,1754317761564,500.0,0.00030215,2]
[377280816,1754317761602,250.0,0.00030215,2]
[377280817,1754317761728,500.0,0.00030215,2]
[377280818,1754317762224,500.0,0.00030215,2]
[377280819,1754317762255,500.0,0.00030215,2]
[377280820,1754317762315,448.01608907,0.00030215,2]
[377280821,1754317765368,336.68623529,0.00030215,2]
[377280822,1754317765766,500.0,0.00030215,2]
[377280823,1754317765818,500.0,0.00030215,2]
[377280824,1754317765879,500.0,0.00030215,2]
[377280825,1754317765935,500.0,0.00030215,2]
[377280826,1754317765990,250.0,0.00030215,2]
[377280827,1754317770364,215.679,0.00030028,2]
[377280828,1754317775903,180.27863853,0.00028706,2]
[377280829,1754317776077,168.41790488,0.00030115,2]
[377280830,1754317776608,500.0,0.00030215,2]
[377280831,1754317778551,500.0,0.00030215,2]
[377280832,1754317790310,402.44669253,0.00030115,2]
[377280833,1754317811993,811.09385264,0.00030115,2]
[377280834,1754317813943,811.09385264,0.00030233,2]
[377280835,1754317815962,811.09385264,0.0003035,2]
[377280836,1754317816928,374.27831165,0.00030273,5]
[377280837,1754317816972,152.57967547,0.00030273,5]
[377280838,1754317817319,471.70043634,0.00030273,5]
[377280839,1754317817358,28.29956366,0.00030273,5]
[377280840,1754317826247,906.80817747,0.00030115,2]
[377280841,1754317828243,150.5,0.00030206,120]
[377280842,1754317828675,150.5,0.00030196,120]
[377280843,1754317829147,224.0,0.00030186,120]
[377280851,1754317832301,396.5636372,0.00030214,2]
[377280884,1754317833396,210.0,0.0003,7]
[377280885,1754317834557,841.52032242,0.00030216,7]
[377280888,1754317837589,-4446.1711522,0.00030215,20]
[377280913,1754317838707,-401436.87300624,0.00030215,20]
[377280915,1754317838716,-32678.00935188,0.00030215,7]
[377280917,1754317838726,-811.09385264,0.00030468,2]
[377280919,1754317838736,-811.09385264,0.00030585,2]
[377280921,1754317838746,-202.77019644,0.00030685,2]
[377280923,1754317838756,-160.0,0.00030785,2]
[377280925,1754317838768,-658.82786366,0.00030785,2]
[377280927,1754317838778,-1000.0,0.00030821,5]
[377280928,1754317838787,-574.89,0.00030849,2]
[377280931,1754317838798,-2030.296672,0.0003088,2]
[377280933,1754317838807,-70518.572715,0.0003089,2]
[377280934,1754317838817,-50000.0,0.0003089,2]
[377280936,1754317838826,-1600.0,0.00030897,2]
[377280938,1754317838836,-1000.0,0.000309,5]
[377280940,1754317838846,-3936.06890528,0.000309,23]
[377280942,1754317838856,-54286.35,0.000309,4]
[377280944,1754317838865,-500.0,0.00030933,5]
[377280946,1754317838875,-2105.41764886,0.00030935,2]
[377280949,1754317838884,-1380.0,0.00030987,2]
[377280952,1754317838894,-10874.85824308,0.0003099,2]
[377280955,1754317838904,-2183.31810187,0.0003099,2]
[377280958,1754317838914,-2264.10087164,0.00031045,2]
[377280961,1754317838924,-646.90217326,0.000311,2]
[377280964,1754317838933,-3936.06890528,0.0003121,24]
[377280967,1754317838943,-500.0,0.0003126,5]
[377280970,1754317838953,-500.0,0.0003126,5]
[377280972,1754317838963,-500.0,0.0003126,5]
[377280974,1754317838973,-500.0,0.000313,5]
[377280976,1754317838983,-500.0,0.000313,5]
[377280978,1754317838992,-164.983962,0.00031311,2]
[377280980,1754317839002,-500.0,0.00031475,5]
[377280982,1754317839012,-3936.06890528,0.00031521,25]
[377280984,1754317839022,-70518.572715,0.00031708,2]
[377280986,1754317839031,-11841.21954607,0.00031718,2]
[377280988,1754317839040,-160.0,0.000318,2]
[377280990,1754317839050,-1000.0,0.00031808,5]
[377280992,1754317839059,-3936.06890528,0.00031831,25]
[377280993,1754317839068,-428.50310293,0.00031848,5]
[377280995,1754317839078,-1000.0,0.00031848,5]
[377280997,1754317839087,-211.34,0.0003198,3]
[377280999,1754317839097,-634.06,0.0003198,3]
[377281001,1754317839106,-928.66277833,0.00032023,5]
[377281003,1754317839116,-3936.06890528,0.00032141,26]
[377281005,1754317839125,-5000.0,0.00032216,4]
[377281007,1754317839135,-260.0,0.00032348,2]
[377281009,1754317839145,-505.30809483,0.00032356,5]
[377281011,1754317839154,-352.14372872,0.00032382,2]
[377281013,1754317839163,-1500.0,0.00032396,5]
[377281015,1754317839172,-3936.06890528,0.00032452,26]
[377281017,1754317839182,-151.0,0.00032646,2]
[377281019,1754317839191,-151.0,0.00032646,2]
[377281021,1754317839201,-226.3786932,0.00032646,2]
[377281023,1754317839211,-151.0,0.00032646,2]
[377281025,1754317839220,-151.0,0.00032646,2]
[377281027,1754317839229,-300.0,0.00032646,2]
[377281029,1754317839239,-151.0,0.00032646,2]
[377281031,1754317839248,-300.0,0.00032646,2]
[377281033,1754317839258,-151.0,0.00032646,2]
[377281035,1754317839267,-300.0,0.00032646,2]
[377281036,1754317839276,-300.0,0.00032646,2]
[377281038,1754317839285,-151.0,0.00032646,2]
[377281040,1754317839295,-300.0,0.00032646,2]
[377281043,1754317839307,-151.0,0.00032646,2]
[377281045,1754317839317,-300.0,0.00032646,2]
[377281047,1754317839326,-151.0,0.00032646,2]
[377281048,1754317839336,-300.0,0.00032646,2]
[377281050,1754317839345,-151.0,0.00032646,2]
[377281052,1754317839355,-300.0,0.00032646,2]
[377281054,1754317839365,-151.0,0.00032646,2]
[377281056,1754317839374,-300.0,0.00032646,2]
[377281058,1754317839384,-300.0,0.00032646,2]
[377281060,1754317839394,-151.0,0.00032646,2]
[377281062,1754317839404,-300.0,0.00032646,2]
[377281064,1754317839413,-151.0,0.00032646,2]
[377281066,1754317839423,-300.0,0.00032646,2]
[377281068,1754317839433,-151.0,0.00032646,2]
[377281070,1754317839443,-300.0,0.00032646,2]
[377281072,1754317839452,-300.0,0.00032646,2]
[377281074,1754317839462,-300.0,0.00032646,2]
[377281076,1754317839475,-205.10140509,0.00032646,2]
[377281078,1754317839484,-250.0,0.00032646,2]
[377281080,1754317839494,-151.0,0.00032646,2]
[377281082,1754317839503,-250.0,0.00032646,2]
[377281084,1754317839514,-151.0,0.00032646,2]
[377281086,1754317839523,-250.0,0.00032646,2]
[377281088,1754317839533,-151.0,0.00032646,2]
[377281090,1754317839544,-250.0,0.00032646,2]
[377281092,1754317839555,-151.0,0.00032646,2]
[377281094,1754317839564,-500.0,0.00032646,2]
[377281096,1754317839574,-250.0,0.00032646,2]
[377281098,1754317839584,-500.0,0.00032646,2]
[377281100,1754317839593,-250.0,0.00032646,2]
[377281102,1754317839603,-265.6989099,0.00032646,2]
[377281104,1754317839612,-250.0,0.00032646,2]
[377281106,1754317839622,-250.0,0.00032646,2]
[377281108,1754317839633,-151.0,0.00032646,2]
[377281109,1754317839643,-250.0,0.00032646,2]
[377281111,1754317839653,-250.0,0.00032646,2]
[377281113,1754317839663,-250.0,0.00032646,2]
[377281115,1754317839673,-250.0,0.00032646,2]
[377281117,1754317839683,-151.0,0.00032646,2]
[377281119,1754317839693,-151.0,0.00032646,2]
[377281121,1754317839703,-151.0,0.00032646,2]
[377281123,1754317839712,-906.80817743,0.00032656,2]
[377281125,1754317839722,-211555.718145,0.00032666,2]
[377281127,1754317839731,-500.0,0.00032673,5]
[377281129,1754317839740,-500.0,0.00032673,5]
[377281131,1754317839749,-501.49014896,0.00032673,5]
[377281133,1754317839758,-500.0,0.00032673,5]
[377281135,1754317839768,-153.69797862,0.00032673,5]
[377281137,1754317839777,-500.0,0.00032673,5]
[377281139,1754317839787,-500.0,0.00032673,5]
[377281141,1754317839796,-500.0,0.00032673,5]
[377281143,1754317839805,-500.0,0.00032673,5]
[377281145,1754317839815,-504.11902981,0.00032673,5]
[377281147,1754317839824,-500.0,0.00032673,5]
[377281149,1754317839835,-442.48622885,0.00032673,5]
[377281151,1754317839844,-500.0,0.00032673,2]
[377281153,1754317839853,-370000.0,0.00032676,2]
[377281155,1754317839862,-3936.06890528,0.00032762,27]
[377281157,1754317839872,-500.0,0.00032765,2]
[377281159,1754317839881,-1957.13,0.00032765,2]
[377281161,1754317839890,-1957.13,0.00032765,2]
[377281163,1754317839899,-1957.13,0.00032765,2]
[377281165,1754317839908,-1957.13,0.00032765,2]
[377281166,1754317839918,-1957.13,0.00032765,2]
[377281168,1754317839929,-1957.13,0.00032765,2]
[377281170,1754317839938,-1957.13,0.00032765,2]
[377281172,1754317839947,-1957.13,0.00032765,2]
[377281174,1754317839956,-1957.13,0.00032765,2]
[377281176,1754317839967,-1957.13,0.00032765,2]
[377281178,1754317839976,-1957.13,0.00032765,2]
[377281180,1754317839985,-1957.13,0.00032765,2]
[377281182,1754317839996,-1957.13,0.00032765,2]
[377281184,1754317840006,-1957.13,0.00032765,2]
[377281186,1754317840016,-1957.13,0.00032765,2]
[377281188,1754317840026,-1957.13,0.00032765,2]
[377281190,1754317840035,-1957.13,0.00032765,2]
[377281192,1754317840045,-1957.13,0.00032765,2]
[377281194,1754317840054,-1957.13,0.00032765,2]
[377281196,1754317840063,-1957.13,0.00032765,2]
[377281198,1754317840072,-1957.13,0.00032765,2]
[377281200,1754317840082,-1957.13,0.00032765,2]
[377281202,1754317840092,-1957.13,0.00032765,2]
[377281204,1754317840102,-1957.15638604,0.00032765,2]
[377281206,1754317840111,-7243.59730329,0.00032776,2]
[377281208,1754317840121,-266.29760607,0.00032873,5]
[377281210,1754317840132,-626.59050468,0.00032873,5]
[377281212,1754317840141,-500.0,0.00032873,5]
[377281214,1754317840150,-500.0,0.00032873,5]
[377281216,1754317840160,-500.0,0.00032873,5]
[377281218,1754317840170,-500.92617682,0.00032873,5]
[377281220,1754317840179,-150.0,0.00032873,5]
[377281222,1754317840189,-500.0,0.00032873,5]
[377281223,1754317840198,-500.0,0.00032873,2]
[377281225,1754317840208,-500.0,0.00032873,5]
[377281227,1754317840218,-431.02658484,0.00032873,5]
[377281229,1754317840228,-500.0,0.00032873,5]
[377281232,1754317840237,-500.0,0.00032873,5]
[377281234,1754317840247,-500.0,0.00032873,5]
[377281236,1754317840256,-500.0,0.00032873,5]
[377281238,1754317840266,-500.0,0.00032873,5]
[377281240,1754317840275,-500.0,0.00032873,5]
[377281242,1754317840285,-500.0,0.00032873,5]
[377281244,1754317840294,-500.0,0.00032873,5]
[377281246,1754317840303,-500.0,0.00032873,5]
[377281248,1754317840313,-501.20491629,0.00032873,5]
[377281250,1754317840322,-501.94772824,0.00032873,5]
[377281252,1754317840332,-500.0,0.00032873,5]
[377281254,1754317840341,-500.0,0.00032873,5]
[377281256,1754317840350,-507.06482567,0.00032873,5]
[377281258,1754317840359,-69855.51666305,0.00032875,5]
[377281260,1754317840375,-57090.14426545,0.00032875,5]
[377281262,1754317840385,-165.67705347,0.00032876,2]
[377281265,1754317840395,-460.0,0.00032876,2]
[377281267,1754317840404,-460.0,0.00032876,2]
[377281269,1754317840414,-500.0,0.00032876,2]
[377281271,1754317840424,-460.0,0.00032876,2]
[377281273,1754317840434,-500.0,0.00032876,2]
[377281275,1754317840443,-503.4175728,0.00032876,2]
[377281277,1754317840453,-460.0,0.00032876,2]
[377281279,1754317840464,-460.0,0.00032876,2]
[377281281,1754317840477,-460.0,0.00032876,2]
[377281283,1754317840487,-460.0,0.00032876,2]
[377281285,1754317840496,-460.0,0.00032876,2]
[377281287,1754317840506,-460.0,0.00032876,2]
[377281289,1754317840519,-460.0,0.00032876,2]
[377281291,1754317840528,-460.0,0.00032876,2]
[377281293,1754317840538,-460.0,0.00032876,2]
[377281295,1754317840549,-460.0,0.00032876,2]
[377281297,1754317840558,-460.0,0.00032876,2]
[377281299,1754317840568,-460.0,0.00032876,2]
[377281301,1754317840578,-460.0,0.00032876,2]
[377281303,1754317840587,-460.0,0.00032876,2]
[377281305,1754317840596,-460.0,0.00032876,2]
[377281306,1754317840606,-460.0,0.00032876,2]
[377281309,1754317840615,-460.0,0.00032876,2]
[377281310,1754317840625,-460.0,0.00032876,2]
[377281312,1754317840635,-460.0,0.00032876,2]
[377281314,1754317840644,-474.66182607,0.00032876,2]
[377281316,1754317840654,-602.43808552,0.00032876,2]
[377281318,1754317840664,-460.0,0.00032876,2]
[377281320,1754317840673,-464.84933769,0.00032876,2]
[377281322,1754317840683,-493.54774092,0.00032876,2]
[377281324,1754317840693,-460.0,0.00032876,2]
[377281326,1754317840703,-460.0,0.00032876,2]
[377281328,1754317840713,-460.0,0.00032876,2]
[377281330,1754317840723,-460.0,0.00032876,2]
[377281332,1754317840732,-465.64023474,0.00032876,2]
[377281334,1754317840742,-460.0,0.00032876,2]
[377281336,1754317840751,-460.0,0.00032876,2]
[377281338,1754317840762,-420.17718731,0.00032876,2]
[377281340,1754317840772,-460.0,0.00032876,2]
[377281342,1754317840781,-462.14596284,0.00032876,2]
[377281344,1754317840791,-460.0,0.00032876,2]
[377281346,1754317840800,-460.0,0.00032876,2]
[377281348,1754317840810,-460.0,0.00032876,2]
[377281350,1754317840821,-460.0,0.00032876,2]
[377281352,1754317840830,-460.0,0.00032876,2]
[377281354,1754317840840,-460.0,0.00032876,2]
[377281356,1754317840849,-460.0,0.00032876,2]
[377281358,1754317840858,-461.03093924,0.00032876,2]
[377281360,1754317840867,-460.0,0.00032876,2]
[377281362,1754317840877,-460.0,0.00032876,2]
[377281364,1754317840886,-460.0,0.00032876,2]
[377281366,1754317840895,-460.0,0.00032876,2]
[377281368,1754317840904,-460.0,0.00032876,2]
[377281371,1754317840914,-1004.16911659,0.00032876,2]
[377281373,1754317840924,-460.0,0.00032876,2]
[377281375,1754317840933,-460.0,0.00032876,2]
[377281377,1754317840943,-460.0,0.00032876,2]
[377281379,1754317840952,-460.0,0.00032876,2]
[377281381,1754317840961,-460.0,0.00032876,2]
[377281383,1754317840970,-460.0,0.00032876,2]
[377281385,1754317840980,-460.0,0.00032876,2]
[377281387,1754317840990,-200.63505158,0.00032876,2]
[377281389,1754317840999,-460.0,0.00032876,2]
[377281391,1754317841010,-460.0,0.00032876,2]
[377281393,1754317841020,-460.0,0.00032876,2]
[377281395,1754317841029,-460.0,0.00032876,2]
[377281397,1754317841039,-536.61370592,0.00032876,2]
[377281399,1754317841049,-460.0,0.00032876,2]
[377281401,1754317841064,-182.90078393,0.00032876,2]
[377281403,1754317841074,-460.0,0.00032876,2]
[377281405,1754317841084,-460.0,0.00032876,2]
[377281407,1754317841094,-460.0,0.00032876,2]
[377281409,1754317841109,-460.0,0.00032876,2]
[377281411,1754317841119,-460.0,0.00032876,2]
[377281413,1754317841128,-460.0,0.00032876,2]
[377281415,1754317841138,-460.0,0.00032876,2]
[377281417,1754317841147,-588.42800725,0.00032876,2]
[377281419,1754317841157,-460.0,0.00032876,2]
[377281421,1754317841167,-465.07576249,0.00032876,2]
[377281423,1754317841176,-460.0,0.00032876,2]
[377281425,1754317841185,-460.0,0.00032876,2]
[377281427,1754317841194,-462.24204964,0.00032876,2]
[377281429,1754317841204,-461.53860473,0.00032876,2]
[377281431,1754317841213,-460.0,0.00032876,2]
[377281433,1754317841222,-507.50700016,0.00032876,2]
[377281435,1754317841231,-460.0,0.00032876,2]
[377281436,1754317841240,-460.0,0.00032876,2]
[377281438,1754317841249,-1200.75,0.00032876,2]
[377281440,1754317841258,-460.0,0.00032876,2]
[377281442,1754317841269,-187.35344696,0.00032876,2]
[377281444,1754317841278,-460.0,0.00032876,2]
[377281446,1754317841287,-460.0,0.00032876,2]
[377281448,1754317841296,-460.0,0.00032876,2]
[377281450,1754317841305,-466.19295867,0.00032876,2]
[377281452,1754317841314,-465.43580173,0.00032876,2]
[377281454,1754317841324,-460.0,0.00032876,2]
[377281456,1754317841333,-460.0,0.00032876,2]
[377281458,1754317841342,-545.08978256,0.00032876,2]
[377281460,1754317841352,-460.0,0.00032876,2]
[377281462,1754317841361,-1039.03,0.00032876,2]
[377281464,1754317841370,-153.50456609,0.00032876,2]
[377281466,1754317841380,-460.0,0.00032876,2]
[377281468,1754317841389,-625.09,0.00032876,2]
[377281470,1754317841399,-460.0,0.00032876,2]
[377281472,1754317841407,-460.0,0.00032876,2]